bitfinex-derivatives/quotes_ETHF0:USTF0_20250518
["timestamp","ask_amount","ask_price","bid_price","bid_amount"]
[1747598408709,17.4198,2404.5,2404.4,5.6332732]
[1747598408999,8.2078,2404.5,2404.4,5.65541384]
[1747598409209,11.2658,2404.5,2404.4,5.65541384]
[1747598409501,26.30822,2404.5,2404.4,5.65541384]
[1747598409705,0.83162,2403.9,2403.2,6.06197221]
[1747598409899,0.83162,2403.9,2400.3,24.38079028]
[1747598409900,0.83221,2402.2,2402.1,10.88977149]
[1747598410095,0.83221,2402.2,2400.3,24.37069028]
[1747598410096,3.2078,2401.7,2400.3,24.37069028]
[1747598410408,3.195261,2400.4,2397.5,3.2078]
[1747598410607,3.2078,2399.2,2397.6,0.32461038]
[1747598410800,3.26925844,2398.6,2392.8,24.75364125]
[1747598410997,0.06145844,2397.5,2396.5,14.14688306]
[1747598411204,3.2078,2396.8,2395.9,0.0725697]
[1747598411502,3.2078,2392.4,2390.7,3.2078]
[1747598411807,25.307,2392.7,2391.6,3.2078]
[1747598411998,3.2078,2393.2,2392.6,3.2078]
[1747598412202,3.2078,2393.0,2392.7,6.00748]
[1747598412504,3.2078,2395.0,2392.9,3.2078]
[1747598412704,3.2078,2394.7,2393.1,6.00748]
[1747598412901,3.2078,2394.5,2393.9,19.8856]
[1747598413101,0.3132463,2396.1,2393.6,4.9894]
[1747598413102,3.2078,2394.2,2393.6,4.9894]
[1747598413301,3.2078,2394.2,2393.0,35.84398897]
[1747598413498,3.2078,2395.1,2394.3,25.40732195]
[1747598413703,3.2078,2394.8,2393.0,1.8804]
[1747598414008,3.2078,2392.9,2391.3,6.25100019]
[1747598414203,3.2078,2392.2,2391.4,26.156]
[1747598414398,8.53701693,2392.0,2389.7,1e-05]
[1747598414610,8.53701693,2392.0,2389.1,8.01368704]
[1747598414611,3.2078,2390.6,2389.1,8.01368704]
[1747598414807,35.713,2391.9,2383.8,3.2078]
[1747598414808,3.2078,2388.6,2383.8,3.2078]
[1747598415104,3.2078,2388.6,2382.3,0.33261583]
[1747598415105,3.2078,2387.2,2384.5,3.2078]
[1747598415306,3.2078,2387.2,2382.3,0.33261583]
[1747598415307,3.2078,2385.2,2382.3,0.33261583]
[1747598415607,0.47545844,2386.3,2381.0,0.00603362]
[1747598415608,3.2078,2383.5,2382.4,3.2078]
[1747598415808,0.8392,2382.3,2370.3,48.694]
[1747598416004,2.09644,2384.0,2370.3,48.694]
[1747598416005,539.227,2390.1,2383.4,17.89313362]
[1747598416211,41.78894,2392.0,2384.1,3.2078]
[1747598416212,3.2078,2385.6,2384.1,3.2078]
[1747598416505,3.2078,2383.2,2381.1,55.05004163]
[1747598416812,1.43970302,2385.2,2384.3,5.23125708]
[1747598416999,1.43970302,2385.2,2380.7,0.84]
[1747598417000,37.547,2391.4,2387.1,12.5856]
[1747598417204,0.06145844,2389.2,2387.6,2.99903697]
[1747598417405,2.08855,2393.0,2387.2,42.052]
[1747598417406,3.2078,2390.6,2388.5,3.2078]
[1747598417601,3.2078,2392.6,2389.8,1.90981176]
[1747598417804,3.2078,2391.2,2390.2,12.5424]
[1747598418006,0.414,2391.6,2390.7,1.70104873]
[1747598418208,5.55656564,2391.1,2390.8,6.2728]
[1747598418408,3.058,2391.2,2390.3,6.2728]
[1747598418608,5.46427136,2393.7,2391.1,3.2078]
[1747598418807,3.2078,2394.4,2392.1,3.2078]
[1747598419001,3.2078,2394.9,2393.6,1.70104873]
[1747598419204,6.2658,2394.9,2393.3,3.2078]
[1747598419406,3.2078,2394.1,2392.0,3.2078]
[1747598419606,3.2078,2393.8,2392.0,16.82204557]
[1747598419804,40.7758,2394.3,2392.9,5.86049233]
[1747598420008,3.2078,2393.4,2392.0,16.82204557]
[1747598420210,3.2078,2392.1,2390.1,3.2078]
[1747598420412,3.2078,2391.3,2390.2,0.083675]
[1747598420607,3.2078,2390.7,2390.2,5e-06]
[1747598420810,3.2078,2391.1,2390.2,5.033205]
[1747598421110,3.058,2391.1,2390.3,6.2744]
[1747598421311,3.058,2391.1,2391.0,3.2078]
[1747598421611,3.2078,2391.8,2390.4,4.45717544]
[1747598421806,3.2078,2390.2,2387.3,3.2078]
[1747598422004,3.2078,2389.1,2388.0,11.3084]
[1747598422218,3.2078,2388.8,2388.1,0.08374858]
[1747598422512,37.568,2389.3,2388.1,0.08374858]
[1747598422513,3.2078,2389.2,2388.1,0.08374858]
[1747598422704,3.2078,2387.4,2385.0,3.2078]
[1747598422907,11.56633419,2390.1,2378.2,541.311]
[1747598422908,3.2078,2385.5,2385.2,6.2808]
[1747598423108,37.591,2386.1,2385.2,4.7354]
[1747598423305,37.591,2386.1,2382.0,3.2078]
[1747598423306,3.2078,2384.9,2382.0,3.2078]
[1747598423512,37.591,2386.1,2382.1,4.7354]
[1747598423513,3.2078,2383.6,2382.1,4.7354]
[1747598423712,3.2078,2384.6,2382.2,7.13117]
[1747598423913,5.53804722,2383.5,2382.0,5.0969]
[1747598424120,0.83938,2381.7,2379.1,3.2078]
[1747598424306,3.2078,2381.9,2380.6,3.2078]
[1747598424513,4.54510079,2384.5,2383.9,1.70104873]
[1747598424709,3.2078,2385.2,2383.9,3.2078]
[1747598425018,3.2078,2385.3,2384.0,1.76864873]
[1747598425209,0.07304196,2386.2,2384.0,42.101]
[1747598425408,3.2078,2385.7,2383.3,3.2078]
[1747598425611,3.2078,2384.6,2382.9,3.2078]
[1747598425814,3.2078,2384.4,2383.1,1.76864873]
[1747598426008,5.30414,2384.1,2382.1,1.8785]
[1747598426212,5.30414,2384.1,2377.3,8.46733053]
[1747598426213,3.2078,2382.0,2379.4,3.2078]
[1747598426411,3.2078,2377.8,2376.8,6.3008]
[1747598426608,542.045,2381.4,2375.1,3.2078]
[1747598426814,3.2078,2377.0,2376.7,3.2078]
[1747598427017,3.2078,2377.0,2374.0,42.159]
[1747598427018,79.801,2376.9,2375.1,3.2078]
[1747598427217,79.801,2376.9,2369.8,1.0467546]
[1747598427218,3.2078,2372.1,2369.2,3.2078]
[1747598427407,0.84,2371.8,2370.1,10.56076873]
[1747598427613,3.2078,2371.5,2370.4,3.23196873]
[1747598427811,3.2078,2369.8,2368.2,4.84733618]
[1747598428008,3.2078,2368.3,2367.3,15.21233109]
[1747598428208,3.2078,2369.2,2368.1,3.058]
[1747598428416,37.642,2377.8,2371.8,12.00453109]
[1747598428720,11.56633419,2372.9,2367.6,3.2078]
[1747598428920,3.2078,2368.2,2366.1,0.0093063]
[1747598429122,3.2078,2368.5,2367.8,3.2078]
[1747598429313,3.2078,2371.6,2368.4,3.2078]
[1747598429510,3.2078,2369.7,2368.5,0.08444162]
[1747598429712,6.3696,2368.3,2365.1,6.3336]
[1747598429911,37.739,2368.2,2365.6,10.5545616]
[1747598430114,6.3696,2368.0,2365.6,3.2078]
[1747598430319,3.2078,2365.7,2362.7,3.2078]
[1747598430618,3.2078,2365.7,2354.2,543.452]
[1747598430619,0.42,2364.3,2361.0,10.00612237]
[1747598430818,1.9277313,2365.9,2362.1,11.56633419]
[1747598431018,9.5774,2366.0,2365.8,3.2078]
[1747598431208,3.2078,2367.9,2365.1,3.2078]
[1747598431408,1.9277313,2368.3,2365.1,3.2078]
[1747598431409,5.50449805,2365.9,2365.1,3.2078]
[1747598431614,3.2078,2371.3,2367.0,3.19510521]
[1747598431825,3.2078,2373.6,2371.2,3.2078]
[1747598432025,3.2078,2374.6,2372.3,3.2078]
[1747598432331,3.2078,2379.3,2375.0,3.2078]
[1747598432527,3.2078,2381.6,2379.8,10.55456522]
[1747598432729,5.50785265,2382.0,2380.0,3.2078]
[1747598433028,3.2078,2381.1,2379.3,3.2078]
[1747598433232,3.2078,2379.4,2376.2,1.7819656]
[1747598433427,3.2078,2373.3,2371.3,3.2078]
[1747598433624,0.828,2377.9,2371.2,0.75187632]
[1747598433625,3.2078,2373.9,2371.6,0.13]
[1747598433825,3.2078,2376.5,2373.1,3.2078]
[1747598434127,3.2078,2376.7,2374.7,3.2078]
[1747598434332,3.2078,2374.8,2373.2,13.2441]
[1747598434533,3.2078,2375.8,2373.2,16.4519]
[1747598434727,3.2078,2377.4,2375.7,3.2078]
[1747598434923,3.2078,2376.7,2374.7,3.2078]
[1747598435122,8.63423012,2377.3,2376.3,3.2078]
[1747598435326,2.10596,2373.3,2370.2,3.2078]
[1747598435527,3.2078,2368.1,2363.0,7.83650894]
[1747598435735,42.427,2368.7,2363.3,3.2078]
[1747598435925,3.2078,2366.1,2363.1,4.9865]
[1747598436132,4.73918864,2368.0,2364.2,3.2078]
[1747598436327,3.2078,2369.2,2367.5,3.2078]
[1747598436636,3.2078,2369.3,2367.6,4.9865]
[1747598436835,2.1069,2372.2,2367.6,4.9865]
[1747598436836,3.2078,2369.6,2367.6,9.21498257]
[1747598437033,3.2078,2368.6,2365.2,3.2078]
[1747598437234,3.2078,2368.6,2366.6,3.2078]
[1747598437432,3.2078,2368.6,2365.2,4.7512]
[1747598437433,3.2078,2369.0,2366.7,47.1782]
[1747598437637,3.2078,2366.8,2363.7,3.2078]
[1747598437830,3.2078,2367.9,2366.1,1.36996427]
[1747598438029,3.2078,2367.0,2365.9,4.50533192]
[1747598438231,3.058,2367.9,2365.9,5.0]
[1747598438433,0.84352,2370.0,2367.1,3.2078]
[1747598438732,5.50098069,2369.7,2369.6,3.2078]
[1747598438933,0.905,2370.8,2369.6,4.7512]
[1747598439238,3.2078,2369.8,2368.1,42.464]
[1747598439538,3.2078,2368.2,2366.4,3.2078]
[1747598439739,3.2078,2368.2,2357.9,15.836]
[1747598439740,3.2078,2366.7,2362.8,3.2078]
[1747598440037,3.2078,2366.7,2353.4,0.31407877]
[1747598440038,3.2078,2359.9,2358.2,3.2078]
[1747598440228,3.2078,2360.2,2359.0,3.2078]
[1747598440432,3.2078,2357.5,2355.7,4.65424283]
[1747598440739,0.81709762,2354.5,2353.2,3.2078]
[1747598440936,3.2078,2355.2,2350.0,50.0]
[1747598441142,3.2078,2354.5,2351.1,4.9003]
[1747598441331,2.12279,2354.4,2350.0,50.0]
[1747598441642,3.2078,2353.2,2350.0,46.06404]
[1747598441835,0.85211,2346.1,2346.0,1e-05]
[1747598442037,3.2078,2352.2,2341.9,42.493]
[1747598442237,3.2078,2346.9,2344.7,3.2078]
[1747598442431,10.52480184,2353.1,2347.9,0.09218003]
[1747598442637,3.2078,2350.0,2347.9,0.09218003]
[1747598442832,3.2078,2350.0,2344.1,3.2078]
[1747598442833,0.85204,2346.4,2345.5,3.2078]
[1747598443034,3.2078,2346.9,2343.6,3.2078]
[1747598443339,3.2078,2348.2,2345.6,6.3848]
[1747598443542,4.1382,2355.4,2345.5,11.56633419]
[1747598443747,3.2078,2353.5,2350.6,3.2078]
[1747598444038,3.2078,2356.0,2354.9,3.1794]
[1747598444234,3.058,2353.6,2351.9,42.611]
[1747598444434,3.058,2353.6,2350.6,0.6381]
[1747598444435,3.2078,2356.3,2355.0,7.2e-06]
[1747598444730,3.2078,2356.2,2355.1,3.1794]
[1747598444937,3.2078,2357.8,2355.2,0.08491847]
[1747598445139,3.2078,2359.5,2355.4,3.2078]
[1747598445336,8.46480151,2354.6,2350.8,0.09218003]
[1747598445637,2.124,2353.1,2346.7,3.2078]
[1747598445837,3.2078,2350.0,2346.8,4.3722]
[1747598446147,3.2078,2352.4,2349.3,3.2078]
[1747598446335,3.2078,2354.1,2350.1,3.2078]
[1747598446536,6.13778003,2350.3,2346.9,3.2078]
[1747598446840,5.25700151,2352.7,2350.2,7.77662405]
[1747598447041,3.2078,2354.7,2351.2,3.14724899]
[1747598447248,3.2078,2354.9,2353.0,3.2078]
[1747598447438,3.2078,2354.9,2351.3,0.08505932]
[1747598447439,0.0849329,2354.8,2351.7,3.2078]
[1747598447641,3.2078,2356.1,2353.5,0.14849848]
[1747598447835,3.2078,2357.3,2354.2,3.2078]
[1747598448037,3.2078,2358.7,2356.1,3.2078]
[1747598448247,3.2078,2358.4,2356.8,3.2078]
[1747598448546,3.2078,2356.5,2354.1,3.2078]
[1747598448744,3.2078,2356.8,2353.7,3.2078]
[1747598449045,3.2078,2356.5,2354.4,4.36009415]
[1747598449346,3.2078,2354.1,2351.8,3.2078]
[1747598449545,3.2078,2355.8,2354.5,4.44507335]
[1747598449745,3.058,2358.3,2354.8,3.2078]
[1747598449746,3.2078,2356.9,2354.8,3.2078]
[1747598450047,3.058,2358.3,2354.6,5.0977]
[1747598450048,6.20296615,2355.3,2354.6,4.01756]
[1747598450251,3.2078,2354.7,2353.8,3.70508041]
[1747598450442,0.08486082,2356.8,2354.7,4.43827697]
[1747598450747,0.08486082,2356.8,2353.8,8.70508041]
[1747598450748,5.59492102,2356.7,2355.6,3.2078]
[1747598450947,3.2078,2356.0,2354.9,3.2078]
[1747598451250,3.058,2356.0,2355.1,3.2078]
[1747598451447,3.2078,2356.4,2355.0,4.439]
[1747598451747,3.2078,2356.1,2352.3,42.725]
[1747598451949,3.2078,2354.7,2323.7,9.81]
[1747598452149,3.2078,2351.1,2350.9,4.46322]
[1747598452349,3.2078,2350.7,2349.2,0.31202953]
[1747598452557,3.2078,2350.2,2349.2,3.51982953]
[1747598452741,3.2078,2353.7,2350.0,3.2078]
[1747598452941,3.2078,2353.7,2345.4,3.2078]
[1747598452942,19.39027681,2348.5,2345.4,3.2078]
[1747598453150,3.2078,2347.8,2345.4,3.058]
[1747598453353,3.2078,2348.1,2346.9,3.2078]
[1747598453541,3.2078,2348.1,2342.7,4.049]
[1747598453542,3.2078,2345.5,2341.3,3.2078]
[1747598453741,3.2078,2343.1,2338.2,3.2078]
[1747598453944,3.2078,2343.1,2338.7,0.42]
[1747598453945,2.53631356,2343.1,2338.7,0.42]
[1747598454147,3.2078,2339.8,2338.3,4.57033991]
[1747598454346,3.2078,2335.8,2332.4,3.2078]
[1747598454545,3.2078,2335.8,2330.0,42.738]
[1747598454546,3.2078,2334.6,2332.0,6.01295978]
[1747598454754,3.2078,2333.0,2331.2,3.41132817]
[1747598455056,38.159,2334.5,2329.4,0.20493156]
[1747598455057,3.2078,2331.3,2329.4,0.20493156]
[1747598455257,3.2078,2329.2,2326.0,3.2078]
[1747598455449,3.2078,2329.2,2326.7,3.2078]
[1747598455450,8.16675215,2328.7,2326.7,3.2078]
[1747598455653,37.24443961,2328.6,2321.5,0.099]
[1747598455851,5.074,2328.6,2321.5,0.3023858]
[1747598456044,6.20296615,2324.7,2321.6,4.82863839]
[1747598456249,3.2078,2327.0,2324.7,0.15762634]
[1747598456553,6.20296615,2323.7,2321.6,0.04082516]
[1747598456848,3.2078,2325.8,2321.5,3.06427948]
[1747598456849,3.2078,2323.5,2321.5,0.42889936]
[1747598457053,6.0029788,2326.8,2323.1,3.2078]
[1747598457251,11.56633419,2328.2,2326.8,5.55e-06]
[1747598457445,9.2107788,2326.3,2322.9,3.2078]
[1747598457646,3.2078,2327.1,2323.8,3.2078]
[1747598457851,2.7951788,2325.1,2324.0,3.2078]
[1747598458160,2.14371,2331.5,2325.1,0.21555777]
[1747598458348,1.2710009,2334.4,2330.0,3.2078]
[1747598458549,1.2710009,2334.4,2325.5,0.84]
[1747598458550,3.2078,2329.6,2325.1,0.21555777]
[1747598458745,3.2078,2326.5,2325.1,8.34257069]
[1747598458945,3.2078,2326.5,2315.3,8.5512]
[1747598458946,3.2078,2334.5,2329.2,3.2078]
[1747598459144,3.2078,2334.5,2325.2,53.48246889]
[1747598459145,38.4,2340.9,2331.1,0.84]
[1747598459344,2.1356,2340.3,2336.2,3.2078]
[1747598459544,30.12106869,2334.1,2331.2,10.63876687]
[1747598459845,3.2078,2333.6,2329.1,48.031]
[1747598460149,2.13267,2343.5,2338.4,3.2078]
[1747598460345,3.2078,2343.0,2339.7,3.2078]
[1747598460547,3.2078,2340.6,2338.5,6.08663]
[1747598460745,3.2078,2340.6,2338.1,3.2078]
[1747598460945,38.4,2342.2,2333.5,4.78534045]
[1747598460946,3.2078,2341.8,2337.3,3.2078]
[1747598461152,0.1952794,3397.1,2341.7,3.2078]
[1747598461153,3.2078,2345.3,2341.7,3.2078]
[1747598461349,3.2078,2348.1,2345.1,3.00000002]
[1747598461550,0.01281429,2341.7,2341.3,0.13]
[1747598461746,5.1223,2348.3,2341.3,0.13]
[1747598461747,3.2078,2346.4,2343.1,3.2078]
[1747598461950,0.85166,2347.4,2345.9,3.2078]
[1747598462145,3.2078,2348.1,2347.3,3.2078]
[1747598462355,5.1223,2351.5,2348.0,3.2078]
[1747598462553,3.2078,2352.8,2351.4,3.2078]
[1747598462853,0.0849762,2353.6,2347.4,38.42]
[1747598462854,5.96489031,2352.2,2351.6,3.2078]
[1747598463155,3.2078,2352.1,2351.9,0.55568255]
[1747598463353,14.20281028,2352.0,2348.9,3.2078]
[1747598463546,3.2078,2351.1,2349.4,3.2078]
[1747598463750,3.15018003,2352.2,2351.0,3.2078]
[1747598463945,3.2078,2353.8,2350.9,3.2078]
[1747598464146,0.07405209,2352.8,2352.2,3.2078]
[1747598464351,3.058,2353.8,2352.6,2.65415706]
[1747598464550,3.058,2353.8,2352.9,3.2078]
[1747598464846,5.87271028,2353.6,2352.3,4.508]
[1747598465154,3.2078,2351.3,2349.6,3.2078]
[1747598465351,3.2078,2352.1,2349.3,8.5265]
[1747598465550,3.2078,2351.9,2350.4,3.2078]
[1747598465747,3.2078,2353.4,2351.5,3.2078]
[1747598466050,3.2078,2352.1,2350.5,4.68149134]
[1747598466253,3.2078,2351.0,2350.3,3.2078]
[1747598466456,3.2078,2354.7,2352.0,3.2078]
[1747598466651,3.2078,2355.2,2353.0,3.2078]
[1747598466847,3.2078,2354.8,2354.2,3.2078]
[1747598467055,3.2078,2354.8,2352.9,42.983]
[1747598467056,3.61726877,2354.5,2353.5,3.2078]
[1747598467252,9.88306877,2354.5,2353.4,3.2078]
[1747598467555,3.46746877,2354.5,2352.6,46.1908]
[1747598467748,3.2078,2356.1,2353.7,3.2078]
[1747598467948,3.2078,2355.8,2354.3,3.2078]
[1747598468148,15.60597905,2356.8,2355.7,3.2078]
[1747598468353,15.60597905,2356.6,2355.3,3.2078]
[1747598468556,50.25627541,2355.4,2353.6,4.71730296]
[1747598468749,3.2078,2354.0,2352.7,5.1814]
[1747598468953,3.2078,2352.9,2352.8,9.27110627]
[1747598469259,3.2078,2355.6,2352.8,3.2078]
[1747598469450,40.45078,2357.8,2351.3,5.39874818]
[1747598469451,0.848,2357.5,2353.7,3.2078]
[1747598469652,3.2078,2356.6,2354.2,3.2078]
[1747598469854,3.2078,2357.0,2356.0,3.2078]
[1747598470155,3.2078,2358.0,2356.0,42.931]
[1747598470461,3.2078,2359.4,2357.4,3.2078]
[1747598470754,3.05799745,2358.0,2356.1,3.2078]
[1747598470956,3.2078,2357.7,2355.8,3.2078]
[1747598471152,3.2078,2359.5,2357.6,3.2078]
[1747598471349,18.64631374,2359.8,2358.1,3.2078]
[1747598471555,0.40075666,2360.2,2358.2,42.881]
[1747598471752,0.40075666,2360.2,2358.4,3.2078]
[1747598472048,3.2078,2358.8,2358.4,42.881]
[1747598472252,3.2078,2361.0,2358.6,3.2078]
[1747598472452,3.2078,2361.3,2358.9,3.2078]
[1747598472849,6.4156,2361.3,2360.3,3.2078]
[1747598473052,3.2078,2361.3,2360.3,3.2078]
[1747598473255,3.2078,2361.3,2361.0,3.2078]
[1747598473562,1.891508,2362.4,2361.1,3.2078]
[1747598473855,1.0259,2361.2,2360.2,4.68879651]
[1747598474058,1.0259,2361.2,2360.8,3.2078]
[1747598474262,4.0839,2361.2,2359.9,42.821]
[1747598474455,0.84675,2361.0,2360.8,3.2078]
[1747598474659,0.84695,2360.4,2360.3,3.43487651]
[1747598474960,3.2078,2360.7,2359.6,3.2078]
[1747598475155,3.058,2360.4,2359.4,3.2078]
[1747598475351,0.8472,2359.7,2359.6,2.49255346]
[1747598475550,3.2078,2359.8,2358.2,42.821]
[1747598475856,3.2078,2358.3,2357.3,3.2078]
[1747598476157,3.2078,2357.6,2357.4,4.85251622]
[1747598476354,3.2078,2357.6,2357.4,1.42170622]
[1747598476555,6.364,2359.6,2355.0,5.3109]
[1747598476556,3.2078,2359.0,2357.0,3.2078]
[1747598476762,3.2078,2360.0,2357.3,3.2078]
[1747598476957,3.2078,2359.6,2357.3,3.2078]
[1747598477160,0.84715,2359.9,2359.3,3.2078]
[1747598477359,3.2078,2359.9,2358.8,3.2078]
[1747598477655,6.3584,2361.0,2357.4,554.65160162]
[1747598477656,3.2078,2360.7,2359.4,4.86392615]
[1747598477856,53.46407541,2361.0,2359.6,3.2078]
[1747598478054,50.25627541,2360.6,2359.4,3.2078]
[1747598478267,3.2078,2359.6,2359.5,4.86685443]
[1747598478556,3.2078,2359.6,2357.1,5.1371]
[1747598478557,0.84792,2357.7,2357.6,4.57876933]
[1747598478760,3.2078,2358.4,2356.4,42.788]
[1747598478956,21.85411374,2358.3,2357.1,2.18415]
[1747598479157,3.2078,2358.9,2357.9,3.2078]
[1747598479462,5.51330294,2360.6,2356.7,38.204]
[1747598479463,3.2078,2360.7,2358.9,3.2078]
[1747598479666,3.2078,2360.7,2359.4,3.2078]
[1747598479855,3.2078,2360.8,2359.6,3.2078]
[1747598480062,3.2078,2362.9,2360.9,3.2078]
[1747598480258,3.2078,2363.2,2361.3,3.2078]
[1747598480475,3.2078,2364.3,2362.6,3.2078]
[1747598480661,3.2078,2364.3,2361.4,80.961]
[1747598480662,50.25627541,2363.9,2363.2,2.30381]
[1747598480866,2.1138,2364.4,2361.4,85.58432211]
[1747598480867,3.2078,2364.4,2363.1,45.9798]
[1747598481064,2.11308,2365.3,2364.1,2.15462]
[1747598481256,0.96780421,2367.4,2364.9,3.2078]
[1747598481567,0.96780421,2367.4,2364.4,3.2078]
[1747598481568,3.2078,2366.9,2365.2,3.2078]
[1747598481761,0.84527,2365.1,2365.0,3.88577]
[1747598481964,0.00954639,2366.1,2364.5,8.02241157]
[1747598482164,3.058,2365.1,2365.0,3.26477506]
[1747598482359,0.8448,2366.5,2365.1,0.84525]
[1747598482665,3.2078,2368.4,2366.2,3.2078]
[1747598482856,3.2078,2368.3,2366.9,3.2078]
[1747598483056,3.2078,2368.6,2367.2,3.2078]
[1747598483466,1.45170631,2368.7,2367.6,3.2078]
[1747598483767,0.84421,2368.1,2367.7,47.13144441]
[1747598484063,51.70798172,2368.7,2367.7,3.2078]
[1747598484367,3.058,2368.1,2367.8,4.41044441]
[1747598484565,72.11038915,2367.9,2367.0,3.2078]
[1747598484765,3.2078,2367.6,2365.3,3.2078]
[1747598484957,0.84473,2366.6,2366.5,0.60294571]
[1747598485159,50.25627541,2366.0,2364.3,45.8768]
[1747598485364,0.84514,2365.5,2364.3,45.8768]
[1747598485558,3.19511951,2366.2,2365.1,4.49516571]
[1747598485762,50.25627541,2365.9,2364.9,3.2078]
[1747598485965,4.945,2367.4,2364.9,3.2078]
[1747598485966,3.2078,2366.1,2365.2,4.57226766]
[1747598486262,3.2078,2366.1,2362.3,2.11567]
[1747598486263,72.95565915,2365.1,2365.0,1.71805532]
[1747598486469,50.25627541,2363.9,2362.6,3.2078]
[1747598486660,3.2078,2364.2,2363.3,3.2078]
[1747598486864,3.2078,2364.8,2364.0,3.2078]
[1747598487060,2.1128,2365.6,2364.2,3.2078]
[1747598487061,3.2078,2365.6,2364.2,3.2078]
[1747598487265,0.84559,2364.2,2364.1,0.13521796]
[1747598487468,4.74502812,2364.2,2361.8,3.2078]
[1747598487664,3.2078,2363.3,2362.1,3.2078]
[1747598487858,0.84627,2362.3,2362.2,4.88715585]
[1747598488064,3.058,2362.3,2361.7,42.669]
[1747598488264,3.2078,2363.8,2362.2,5.90856422]
[1747598488466,3.2078,2364.4,2363.3,3.2078]
[1747598488770,3.2078,2364.9,2364.3,3.2078]
[1747598489070,3.2078,2365.7,2364.8,3.2078]
[1747598489368,3.2078,2366.4,2364.9,42.98622407]
[1747598489674,4.05254,2366.6,2365.7,3.2078]
[1747598489874,4.05278,2365.9,2365.8,40.32312]
[1747598490169,6.2658,2365.9,2364.8,47.14459257]
[1747598490370,3.2078,2366.9,2365.6,3.2078]
[1747598490564,3.2078,2367.0,2365.8,4.48459257]
[1747598490764,3.2078,2366.4,2365.7,4.48459257]
[1747598490969,3.2078,2365.8,2364.9,3.2078]
[1747598491173,3.2078,2365.2,2364.0,45.8678]
[1747598491367,3.058,2365.8,2363.2,8.2224]
[1747598491368,3.2078,2364.1,2363.2,8.2224]
[1747598491572,3.2078,2363.3,2362.2,3.2078]
[1747598491763,3.2078,2363.0,2361.4,5.209]
[1747598491963,0.84634,2362.1,2362.0,0.42172916]
[1747598492167,0.84652,2361.6,2361.5,1.93e-06]
[1747598492466,3.2078,2360.9,2359.2,3.2078]
[1747598492666,3.2078,2360.7,2359.8,3.2078]
[1747598492867,0.84684,2360.7,2359.8,3.2078]
[1747598493166,3.2078,2359.9,2359.3,9e-07]
[1747598493472,3.2078,2359.4,2358.4,3.2078]
[1747598493670,1.69352808,2359.3,2358.4,0.08470182]
[1747598493867,4.74502812,2359.2,2358.5,3.82848877]
[1747598494070,3.2078,2359.1,2357.7,3.2078]
[1747598494269,3.2078,2359.1,2358.2,4.67792591]
[1747598494469,2.97329818,2359.3,2359.0,3.2078]
[1747598494768,3.2078,2360.9,2359.2,3.2078]
[1747598495074,39.957508,2362.5,2358.6,38.066]
[1747598495075,3.2078,2360.2,2359.3,3.77342771]
[1747598495375,6.27327731,2359.4,2357.0,5.2459]
[1747598495570,3.06547731,2358.3,2357.1,3.2078]
[1747598495772,2.45645041,2357.4,2357.3,3.38042771]
[1747598496076,2.45645041,2357.4,2355.4,3.2078]
[1747598496077,3.2078,2357.4,2355.4,3.2078]
[1747598496271,3.2078,2356.5,2355.0,42.659]
[1747598496474,3.058,2358.3,2355.0,42.659]
[1747598496475,3.2078,2356.9,2355.0,45.8668]
[1747598496777,3.2078,2356.6,2355.0,48.5978577]
[1747598496969,3.2078,2358.2,2355.6,3.2078]
[1747598497170,3.2078,2359.0,2357.3,3.2078]
[1747598497366,3.2078,2360.3,2358.9,3.2078]
[1747598497580,3.2078,2360.9,2359.4,3.2078]
[1747598497773,3.2078,2360.5,2359.1,42.69]
[1747598497980,40.23276,2361.1,2357.3,3.2078]
[1747598497981,3.2078,2359.2,2357.3,3.2078]
[1747598498173,3.2078,2358.9,2356.9,3.2078]
[1747598498480,3.2078,2359.2,2357.4,4.67537105]
[1747598498778,5.2003,2360.4,2356.8,3.2078]
[1747598498779,3.2078,2358.4,2356.8,3.2078]
[1747598498983,3.2078,2357.9,2355.6,3.058]
[1747598499273,3.058,2358.4,2357.1,3.2078]
[1747598499476,3.2078,2359.0,2357.4,3.2078]
[1747598499673,3.2078,2359.8,2358.4,0.84764]
[1747598499871,3.2078,2358.5,2357.6,3.2078]
[1747598500075,3.2078,2359.5,2358.2,3.2078]
[1747598500381,3.058,2359.8,2358.8,3.2078]
[1747598500684,3.058,2359.8,2358.3,4.70990125]
[1747598500685,3.2078,2359.7,2358.3,42.698]
[1747598500977,3.2078,2359.1,2358.3,3.2078]
[1747598501171,3.058,2359.1,2358.4,47.5063428]
[1747598501372,16.13646844,2361.1,2359.0,3.2078]
[1747598501578,3.2078,2362.0,2361.0,3.2078]
[1747598501782,8.2421,2362.9,2361.1,42.698]
[1747598501979,0.09218003,2363.0,2362.0,3.2078]
[1747598502171,0.09218003,2363.0,2362.2,3.2078]
[1747598502375,8.2421,2364.5,2362.9,3.2078]
[1747598502574,1.62681838,2364.6,2361.3,4.23309]
[1747598502575,1.62681838,2364.6,2363.0,42.698]
[1747598502773,1.62681838,2364.6,2363.2,3.2078]
[1747598502976,0.08458447,2364.5,2363.2,3.2078]
[1747598503180,0.09218003,2363.0,2362.9,4.7418766]
[1747598503379,8.32668447,2364.5,2363.3,4.4429748]
[1747598503580,15.44045447,2364.5,2362.7,3.2078]
[1747598503783,3.2078,2363.9,2361.9,3.2078]
[1747598503985,3.2078,2363.9,2360.5,42.676]
[1747598503986,3.2078,2362.5,2361.3,4.72132384]
[1747598504184,0.08465966,2362.4,2360.8,3.2078]
[1747598504484,0.08465966,2362.4,2361.8,3.2078]
[1747598504688,3.2078,2361.9,2359.6,3.2078]